Cogmind - Beta 13 @@@ ROGUE MODE // 2024.04.14 @ 15:22:00 Player: Stavbearer Result: Destroyed by 8R-AWN with 8R-AWN's Boregun Performance ------------- Evolutions (1) 500 Regions Visited (5) 1000 Robots Destroyed (19) 95 Value Destroyed (352) 352 Prototype IDs (3) 60 Alien Tech Used (0) 0 Bonus (300) 300 TOTAL SCORE: 2307 Bonus ------- Aligned with FarCom 300 Cogmind --------- Core Integrity 0/400 Matter 182/300 Energy 240/250 System Corruption 19% Temperature Cool (0) Movement Rolling (95) Ox1 Location -9/Exiles Parts ------- > --- POWER (1) -------- Ion Engine > --- PROPULSION (2) --- Wheel > --- UTILITY (3) ------ Improved Heat Sink Small Storage Unit Visual Processing Unit > --- WEAPON (3) ------- Longsword +1 > --- INVENTORY (8) ---- Light Ion Engine Improved Ion Engine Fission Core Light Fission Core Medium Matter Pod (100) Improved Terrain Scanner Terrain Scan Processor Peak State ------------ > --- POWER ------------ Ion Engine > --- PROPULSION ------- Wheel > --- UTILITY ---------- Improved Heat Sink Small Storage Unit Visual Processing Unit > --- WEAPON ----------- High-powered Shotgun Bore Cannon Longsword +1 > --- INVENTORY -------- Light Ion Engine Improved Ion Engine Fission Core Light Fission Core Wheel Medium Matter Pod Improved Terrain Scanner Terrain Scan Processor [Rating: 26] Favorites ----------- Power Ion Engine Engine Ion Engine Propulsion Wheel Leg Titanium Leg Wheel Wheel Utility Small Storage Unit Device Improved Heat Sink Storage Small Storage Unit Processor Visual Processing Unit Protection Light Armor Plating Weapon High-powered Shotgun Energy Gun EM Pulse Gun Ballistic Gun High-powered Shotgun Ballistic Cannon Bore Cannon Launcher Rocket Launcher Special Weapon Mining Laser Slashing Weapon Longsword +1 Build | -11 -10 -10 -9 -9 -9 ------- Run | Yrd Mat Min Mat Min Exi Slots Evolved 2 | . . . 2 . . Power . | . . . . . . Propulsion . | . . . . . . Utility 1 | . . . 1 . . Weapon 1 | . . . 1 . . Parts Attached 31 | 8 . . 10 11 2 Power 3 | 1 . . 1 1 . Engine 3 | 1 . . 1 1 . Core . | . . . . . . Reactor . | . . . . . . Propulsion 10 | 3 . . 4 2 1 Treads . | . . . . . . Leg 2 | . . . 2 . . Wheel 8 | 3 . . 2 2 1 Hover . | . . . . . . Flight . | . . . . . . Utility 6 | 2 . . 1 3 . Device 3 | 1 . . 1 1 . Storage 1 | 1 . . . . . Processor 1 | . . . . 1 . Hackware . | . . . . . . Protection 1 | . . . . 1 . Artifact . | . . . . . . Weapon 12 | 2 . . 4 5 1 Energy Gun 3 | 2 . . 1 . . Energy Cannon . | . . . . . . Ballistic Gun 5 | . . . 3 2 . Ballistic Cannon 1 | . . . . 1 . Launcher 1 | . . . . 1 . Special Weapon 1 | . . . . 1 . Impact Weapon . | . . . . . . Slashing Weapon 1 | . . . . . 1 Piercing Weapon . | . . . . . . Special Melee Weapon . | . . . . . . Unidentified Prototypes 1 | . . . . . 1 Corrupted Parts 2 | 1 . . . 1 . System Corruption 16 | 1 . . . 15 . Parts Lost 13 | . . . . 9 4 Power . | . . . . . . Propulsion 4 | . . . . 2 2 Utility 3 | . . . . 3 . Weapon 6 | . . . . 4 2 Highest Loss Streak 8 | . . . . 8 3 To Critical Strikes . | . . . . . . Average Slot Usage (%) 93 | . 100 100 99 84 96 Engine 11 | . 14 14 11 11 11 Leg 4 | . . . 14 . . Wheel 13 | . 28 28 7 11 19 Device 14 | . 14 14 22 11 11 Storage 11 | . 14 14 11 11 11 Processor 5 | . . . . 8 11 Energy Gun 3 | . 28 28 3 . . Ballistic Gun 17 | . . . 29 17 10 Ballistic Cannon 3 | . . . . 2 10 Launcher 5 | . . . . 8 9 Naked Turns . | . . . . . . Heaviest Build 29 | 15 15 15 23 29 27 Greatest Support 34 | 26 20 20 34 20 20 Greatest Overweight (x) 8 | 1 . . 1 7 8 Average Overweight (x) . | . . . . 1 1 Largest Inventory Capacity 8 | 8 8 8 8 8 8 Average Capacity 7 | 7 8 8 8 8 8 Most Carried 8 | 8 8 6 8 8 8 Average Carried 6 | 4 6 6 7 4 7 Final Capacity 8 | 8 8 8 8 8 8 Final Carried 8 | 7 6 6 8 6 7 Class Distribution -------------------- 42% | Scavenger-Skirmisher 32% | Skirmisher 22% | Mutant Dominant Class ---------------- Mutant | -10/Materials Mutant | -10/Mines Skirmisher | -9/Materials Skirmisher | -9/Mines Scavenger-Skirmisher | -9/Exiles Resources | -11 -10 -10 -9 -9 -9 ----------- Run | Yrd Mat Min Mat Min Exi Matter Collected 929 | 280 . . 182 425 42 Remotely . | . . . . . . Salvage Created 513 | 166 14 59 182 28 64 Parts 40 | 16 1 5 17 1 . Haulers Intercepted . | . . . . . . Recyclers Shooed 1 | . . 1 . . . Parts Field Recycled . | . . . . . . Retrieved Matter . | . . . . . . Parts Self-Destructed . | . . . . . . Prevented . | . . . . . . Kills | -11 -10 -10 -9 -9 -9 ------- Run | Yrd Mat Min Mat Min Exi Combat Hostiles Destroyed 18 | . . 3 5 5 5 Melee 2 | . . . . . 2 Guns 11 | . . 3 5 3 . Cannons 3 | . . . . . 3 AOE 2 | . . . . 2 . Classes Destroyed 10 | 3 1 1 3 2 . Worker 2 | 1 . . 1 . . Tunneler 5 | 4 . . . 1 . Recycler 1 | 1 . . . . . Operator 1 | . 1 . . . . Watcher 1 | . . . 1 . . Swarmer 3 | . . 3 . . . Grunt 4 | . . . 4 . . Sentry 1 | . . . 1 . . Demolisher 1 | . . . . 1 . Assembled 9 | . . . . 4 5 Best Kill Streak 5 | 4 1 3 2 4 5 Combat Bots Only 5 | . . 3 2 3 5 Max Kills in Single Turn 2 | 1 1 1 1 2 1 Gunslinging . | . . . . . . Exploded 1 | . . . . 1 . Melee 1 | . . . . . 1 Uniques/NPCs Destroyed . | . . . . . . Combat | -11 -10 -10 -9 -9 -9 -------- Run | Yrd Mat Min Mat Min Exi Hostile Shots Fired 109 | . . 6 23 33 47 Missed 34 | . . 2 8 9 15 Damage Taken 1587 | 6 . 29 191 862 499 Core 422 | 6 . 6 13 284 113 Absorbed by Shields . | . . . . . . Core Remaining (%) 96 | 97 . 95 . . . Volleys Fired 63 | 11 1 7 17 14 13 Largest 3 | 2 2 2 3 3 1 Hottest 83 | 80 80 80 75 83 57 Shots Fired 123 | 22 2 14 47 24 14 Gun 104 | 22 2 14 47 19 . Cannon 14 | . . . . 1 13 Launcher 5 | . . . . 4 1 Special . | . . . . . . Kinetic 80 | . . . 47 20 13 Thermal . | . . . . . . Explosive 5 | . . . . 4 1 Electromagnetic 38 | 22 2 14 . . . Robot Hit Streak 8 | 7 8 2 5 5 5 Robot Miss Streak 8 | 2 1 3 6 8 3 Penetration Max . | . . . . . . Secondary Targets 1 | . . 1 . . . Max Gunslinging Chain 1 | . . 1 . . . Shots Hit Robots 72 | 12 1 7 27 14 11 Core Hits 43 | 8 1 4 12 12 6 Critical Kills 2 | . . . . . 2 Critical Parts Destroyed 2 | . . . . . 2 Critical Strikes 4 | . . . . . 4 Destroy 4 | . . . . . 4 Melee Attacks 6 | . . . . . 6 Impact . | . . . . . . Slashing 6 | . . . . . 6 Piercing . | . . . . . . Sneak Attacks . | . . . . . . Combat Hostiles . | . . . . . . Follow-up Attacks . | . . . . . . Damage Inflicted 1695 | 252 72 109 548 376 338 Guns 1067 | 147 16 109 548 247 . Cannons 125 | . . . . . 125 Explosions 344 | 105 56 . . 129 54 Melee 159 | . . . . . 159 Ramming . | . . . . . . Kinetic 920 | . . . 548 247 125 Thermal 161 | 105 56 . . . . Explosive 183 | . . . . 129 54 Electromagnetic 272 | 147 16 109 . . . Impact . | . . . . . . Slashing 159 | . . . . . 159 Piercing . | . . . . . . Highest Corruption 19 | 1 2 2 . 19 19 Average Corruption 11 | 1 1 2 . 8 19 Corruption Purged . | . . . . . . Corruption Blocked . | . . . . . . Effects 40 | . 1 1 . 17 21 Message Errors 6 | . . . . 1 5 Matter Fused 12 | . . . . 5 7 Heat Flow Errors 5 | . . . . 3 2 Energy Discharges 2 | . . . . 1 1 Data Loss (minor) 9 | . 1 1 . 3 4 Misfires 2 | . . . . 1 1 Alerts 1 | . . . . . 1 Weapon Failures 3 | . . . . 3 . Overload Shots . | . . . . . . Overflow Damage 30 | 4 . . . . 26 Projectiles . | . . . . . . Explosions 30 | 4 . . . . 26 Melee . | . . . . . . Knockbacks 2 | . . . . . 2 Impact . | . . . . . . Kinetic 2 | . . . . . 2 Secondary . | . . . . . . Self-Inflicted Damage 86 | 6 . . . 45 35 Shots 3 | 1 . . . 1 1 Rammed . | . . . . . . Targets Rammed . | . . . . . . Kicked . | . . . . . . Crushed . | . . . . . . Highest Temperature 251 | 54 18 56 121 251 208 Average Temperature 46 | 26 12 30 42 99 52 Received Heat Transfer 283 | . . . 123 . 160 Siege Activations . | . . . . . . Robots Corrupted . | . . . . . . Combat Hostiles . | . . . . . . Parts Fried . | . . . . . . Impact Corruptions . | . . . . . . Robots Melted . | . . . . . . Combat Hostiles . | . . . . . . Parts Melted . | . . . . . . Heat Transferred 150 | 100 50 . . . . Parts Sabotaged . | . . . . . . Parts Stolen . | . . . . . . Parts Stripped . | . . . . . . Power Chain Reactions 3 | 2 1 . . . . Alert | -11 -10 -10 -9 -9 -9 ------- Run | Yrd Mat Min Mat Min Exi Peak Influence 151 | 30 42 86 151 24 . Initial 33 | . 19 16 33 19 . Average 29 | 10 24 82 50 14 . Maximum Alert Level . | . . . . . . Low Security (%) 100 | 100 100 100 100 100 . Level 1 . | . . . . . . Level 2 . | . . . . . . Level 3 . | . . . . . . Level 4 . | . . . . . . Level 5 . | . . . . . . High Security . | . . . . . . Max Security . | . . . . . . Squads Dispatched 1 | . 1 . . . . Investigation 1 | . 1 . . . . Extermination . | . . . . . . Reinforcement . | . . . . . . Assault . | . . . . . . Garrison . | . . . . . . Intercept . | . . . . . . Searches Triggered . | . . . . . . Construction Impeded . | . . . . . . Haulers Reinforced . | . . . . . . Active Scanning Responses . | . . . . . . Cargo Convoy Interrupts . | . . . . . . Stealth | -11 -10 -10 -9 -9 -9 --------- Run | Yrd Mat Min Mat Min Exi Distress Signals . | . . . . . . Communications Jammed . | . . . . . . Distress Signals . | . . . . . . Times Spotted 36 | . 1 2 6 19 8 Peak Tracking Total 10 | . 1 1 4 8 10 Tactical Retreats 3 | . . . . 3 . Traps | -11 -10 -10 -9 -9 -9 ------- Run | Yrd Mat Min Mat Min Exi Traps Triggered . | . . . . . . Indirectly . | . . . . . . Trap Hack Attempts . | . . . . . . Triggered . | . . . . . . Disarmed 3 | . 3 . . . . Reprogrammed . | . . . . . . Reused . | . . . . . . Traps Extracted . | . . . . . . Installed . | . . . . . . Triggered . | . . . . . . Machines | -11 -10 -10 -9 -9 -9 ---------- Run | Yrd Mat Min Mat Min Exi Machines Disabled 3 | . . . . . 3 Max in Single Turn 1 | . . . . . 1 Machines Repaired . | . . . . . . Machines Dismantled . | . . . . . . Machines Sabotaged . | . . . . . . Overloaded Fab Kills . | . . . . . . Hacking | -11 -10 -10 -9 -9 -9 --------- Run | Yrd Mat Min Mat Min Exi Machines Accessed 7 | . 4 . 2 . 1 Terminals 5 | . 4 . 1 . . Fabricators . | . . . . . . Repair Stations . | . . . . . . Recycling Units . | . . . . . . Scanalyzers 1 | . . . 1 . . Garrison Access . | . . . . . . Total Hacks 40 | . 11 . 6 . 23 Successful 30 | . 3 . 4 . 23 Failed 10 | . 8 . 2 . . Catastrophic 2 | . 2 . . . . Database Lockouts . | . . . . . . Manual 6 | . 1 . 1 . 4 Terminals 12 | . 11 . 1 . . Fabricators . | . . . . . . Repair Stations . | . . . . . . Recycling Units . | . . . . . . Scanalyzers 5 | . . . 5 . . Garrison Access . | . . . . . . Terminal Hacks 27 | . 3 . 1 . 23 Record 23 | . . . . . 23 Prototype ID Bank 1 | . . . 1 . . Alert Level 1 | . 1 . . . . Disarm Traps 1 | . 1 . . . . Zone Layout 1 | . 1 . . . . Fabricator Hacks . | . . . . . . Repair Station Hacks . | . . . . . . Recycling Unit Hacks . | . . . . . . Scanalyzer 3 | . . . 3 . . Insert Component 1 | . . . 1 . . Analyze 2 | . . . 2 . . Garrison Access Hacks . | . . . . . . Unauthorized Hacks . | . . . . . . Terminals . | . . . . . . Fabricators . | . . . . . . Repair Stations . | . . . . . . Recycling Units . | . . . . . . Scanalyzers . | . . . . . . Garrison Access . | . . . . . . Data Cores Recovered 1 | . 1 . . . . Used 1 | . 1 . . . . Hacking Detections 5 | . 4 . 1 . . Full Trace Events 2 | . 2 . . . . Feedback Events 1 | . 1 . . . . Corruption 1 | . 1 . . . . Feedback Blocked . | . . . . . . Robot Schematics Acquired . | . . . . . . Robots Built . | . . . . . . Authchips . | . . . . . . Time . | . . . . . . Total Robot Build Rating . | . . . . . . Part Schematics Acquired 1 | . . . 1 . . Parts Built . | . . . . . . Authchips . | . . . . . . Time . | . . . . . . Total Part Build Rating . | . . . . . . Parts Repaired . | . . . . . . Time . | . . . . . . Parts Recycled . | . . . . . . Recycled Matter . | . . . . . . Retrieved Matter . | . . . . . . Retrieved Components . | . . . . . . Parts Scanalyzed 1 | . . . 1 . . Part Schematics Acquired 1 | . . . 1 . . Parts Damaged . | . . . . . . Bothacking | -11 -10 -10 -9 -9 -9 ------------ Run | Yrd Mat Min Mat Min Exi Used RIF Installer . | . . . . . . Robots Hacked . | . . . . . . Non-combat . | . . . . . . Combat . | . . . . . . Robot Hacks Applied . | . . . . . . Relay Couplers Released . | . . . . . . Fabnet Peak Effective % . | . . . . . . Robots Rewired . | . . . . . . Allies Hacked . | . . . . . . Hacks Repelled . | . . . . . . Allies | -11 -10 -10 -9 -9 -9 -------- Run | Yrd Mat Min Mat Min Exi Total Allies . | . . . . . . Largest Group . | . . . . . . Highest-Rated Group . | . . . . . . Highest-Rated Ally . | . . . . . . Total Orders . | . . . . . . Ally Attacks . | . . . . . . Total Damage . | . . . . . . Kills . | . . . . . . Allies Corrupted . | . . . . . . Allies Melted . | . . . . . . Intel | -11 -10 -10 -9 -9 -9 ------- Run | Yrd Mat Min Mat Min Exi Robot Analysis Total . | . . . . . . Derelict Logs Recovered 1 | . . . . 1 . Drone Launches . | . . . . . . Drone Recoveries . | . . . . . . Exploration | -11 -10 -10 -9 -9 -9 ------------- Run | Yrd Mat Min Mat Min Exi Turns Passed 1869 | 147 114 45 493 632 438 Spaces Moved 1376 | 111 136 29 286 407 407 Core 84 | 13 . . . 70 1 Treads . | . . . . . . Legs 174 | . . . 174 . . Wheels 1118 | 98 136 29 112 337 406 Hover . | . . . . . . Flight . | . . . . . . Fastest Speed 50 | 50 80 80 80 80 95 Average Speed 110 | 82 80 80 114 141 97 Slowest Speed 450 | 100 80 80 130 400 450 Overloaded Moves . | . . . . . . Propulsion Burnouts . | . . . . . . Robots Hopped . | . . . . . . Cave-ins Triggered . | . . . . . . Exploration Rate (%) 30 | 5 24 10 17 63 65 Regions Visited 5 Branch Regions 3 Pre-discovered Areas 2 | . . . . 1 1 Known Exits Taken . | . . . . . . Unknown Exits Taken 5 | 1 1 1 1 1 . Scrap Searched 1 | . . . . 1 . Spaces Dug . | . . . . . . Terrain Destroyed 39 | 6 2 . . 27 4 Melee . | . . . . . . Projectile 5 | . . . . 1 4 AOE 34 | 6 2 . . 26 . Terrain Rammed . | . . . . . . Walls Destroyed . | . . . . . . Machines Disabled . | . . . . . . Actions | -11 -10 -10 -9 -9 -9 --------- Run | Yrd Mat Min Mat Min Exi Total 1603 | 142 139 36 416 438 432 Wait 84 | . . 1 82 . 1 Move 1371 | 110 135 28 285 406 407 Hop . | . . . . . . Pick Up 29 | 11 1 . 9 6 2 Fast Attach 13 | 5 . . 5 2 1 Attach 12 | 2 . . 2 7 1 Detach 2 | . . . 2 . . Swap 6 | 1 . . 3 2 . Drop 17 | 2 2 . 11 1 1 Fire 63 | 11 1 7 17 14 13 Melee 6 | . . . . . 6 Ram . | . . . . . . Kick . | . . . . . . Crush . | . . . . . . Escape Stasis . | . . . . . . Rewire . | . . . . . . Trap . | . . . . . . Miscellaneous . | . . . . . . Route ------- -11/Scrapyard -10/Materials -10/Mines -9/Materials -9/Mines -9/Exiles (discovered 2 exits: [*Min x2]) History --------- Turn | Location | Event 11 | -11/Scrapyard | Discovered new exit (range 15) 148 | -11/Scrapyard | Entered Materials 257 | -10/Materials | Discovered new exit (range 6) 262 | -10/Materials | Entered Mines 299 | -10/Mines | Discovered new exit (range 7) 307 | -10/Mines | Entered Materials 307 | -9/Materials | Evolved 2 slots: Utility x1, Weapon x1 621 | -9/Materials | Build established: Skirmisher 631 | -9/Materials | Discovered new exit (range 9) 800 | -9/Materials | Entered Mines 851 | -9/Mines | Assembled infested the area 851 | -9/Mines | Learned location of Zion (-6) 856 | -9/Mines | Assisted by a Guerilla fighting off Assembled 949 | -9/Mines | Core integrity fell below 50% 975 | -9/Mines | Lost 8 parts (2n3u3w) 1275 | -9/Mines | System corruption reached 10% 1426 | -9/Mines | Deemed a non-threat by the Exiles lab entrance 1427 | -9/Mines | Discovered new exit (range 5) 1432 | -9/Mines | Entered Exiles 1460 | -9/Exiles | Discovered new exit (range 17) 1472 | -9/Exiles | Met 8R-AWN 1490 | -9/Exiles | Met EX-HEX 1533 | -9/Exiles | Met EX-DEC 1559 | -9/Exiles | Build established: Scavenger-Skirmisher 1606 | -9/Exiles | Discovered new exit (range 15) 1685 | -9/Exiles | Met EX-BIN 1777 | -9/Exiles | Aligned with FarCom system 1778 | -9/Exiles | Given EX-Vault access code 1784 | -9/Exiles | Attacked by the Exiles 1814 | -9/Exiles | Opened EX-Vault 1819 | -9/Exiles | Core integrity fell below 20% 1820 | -9/Exiles | Found Prototype Slashing Weapon 1820 | -9/Exiles | Identified Longsword +1 1870 | -9/Exiles | Destroyed by 8R-AWN with 8R-AWN's Boregun Last Messages --------------- HV Slug penetrates as-76747. as-76747 destroyed. System corrupted: Component data lost. EX-Prototypes Database disabled. EX-Vault Access disabled. HV Slug penetrates as-35354. as-35354 suffers critical hit (Destroy). Destroyed Asb. F-torch. HV Slug penetrates Wall. Acquired 11 matter. HV Slug penetrates Wall. Penetrated by HV Slug. System corrupted: Matter fused (-6). Penetrated by HV Slug. Hpw. Shotgun destroyed. HV Slug penetrates Wall. Penetrated by HV Slug. Bore Cannon destroyed. Acquired 31 matter. Penetrated by HV Slug. Map ----- +----------------------------------------------------+ | | | | | | | | | | | | | | | | | | | | | | | | | | | | | | | | | ???????????????????#########?????????????????????? | | ???????????????????# #?????????????????????? | | ???????????????????# % ! ]#?????????????????????? | | ???????????????????# &&% #?????????????????????? | | ???????????????????# &% #?????????????????????? | | ???????????????????## %%% ##?????????????????????? | | ???????????????????# ##?????????????????????? | | ???????????????????## % ;#?????????????????????? | | ???????????????????## ##?????????????????????? | | ???????????????????#; @#########??????????????? | | ??????????????????# ; g##""""""#??????????????? | | ??????????????????##; ## """#??????????????? | | ???????????????????## X""#??????????????? | | ????????????????????# ## """#??????????????? | | ????????????######### ##""""""#??????????????? | | ????????????#""""""## #########??????????????? | | ????????????#"""" ## #??????????????????????? | | ????????????#""X" #??????????????????????? | | ????????????#" #??????????????????????? | | ????????????#" ## #??????????????????????? | | ????????????#""""""## #?#########????????????? | | ????????????##"###### #?#"""""""#????????????? | | ???????????? "?????# #?#"""""""#????????????? | | ???????????""" ?????# #?#"""""""#????????????? | | ??????????#""" ????## ###"" """"#????????????? | | ???????????""" ????#" """"#????????????? | | ?????????????##????#" ""#????????????? | | ???????????????????#" ""#????????????? | | ???????????????????#" ""#????????????? | | ????########???????#" "#????????????? | | ????# """#???????#" "## ??????????? | | ????#"" """#???????## """""" ?????????? | | ????#"" #????????# """###??????????? | | ????#"" #????????#" "X" """"" ??????????? | +----------------------------------------------------+ Best States ------------- Heat Dissipation 42 Energy Generation 12 Energy Capacity 265 Matter Stores 300 Matter Capacity 300 Sight Range 18 Terrain Scan Range 16 Terrain Scan Density 10 Armor Coverage 150 Evasion (%) 55 Item Schematics ----------------- Hpw. Shotgun | -9/Materials | Scanalyzed Robot Schematics ------------------ None Fabricated ------------ Nothing Alien Tech Used ----------------- None Achievements -------------- Librarian Maybe Next Time I'll Detach My Launcher Challenges ------------ None Game ------ Seed ChargeWeaponsSword Manual? 0 Play Time 00:32:04 Cumulative 9.0 hours Start 2024.04.14 @ 14:51:00 End 2024.04.14 @ 15:22:00 Sessions 1 Manual Loads 0 Difficulty Rogue Special Mode None Game No. 10 Rogue 10 Adventurer 0 Explorer 0 Win Type - Total 0 Types 0/0/0/0/0/0/0/0/0 Lore% 9 Gallery% 14 Achievement% 14 Wizard Run 0 Options --------- Layout 1 ASCII 0 Keyboard 0 Movement Arrows Keybinds 0 Fullscreen 1 Font 24/Smallcaps Map View 50x35 Zoom Use 0% Tactical HUD 0 Map Filters NONE Filters NONE Steam 1 RUN: 7704c0a2-8797-4669-9624-589690a2c887